fUST/lending_fUST_20251228
["ID","MTS","AMOUNT","RATE_DAILY","PERIOD"]
[399910422,1766857834434,-151.0,0.00019178,2]
[399910423,1766857834445,-151.0,0.00019178,2]
[399910424,1766857834455,-163.63272,0.00019178,2]
[399910425,1766857834464,-170.938644,0.00019178,2]
[399910426,1766857834475,-478.75725327,0.00019178,2]
[399910427,1766857834484,-2312.83697232,0.00019178,2]
[399910428,1766857834493,-151.97991357,0.00019192,2]
[399910429,1766857834503,-823.3,0.000192,2]
[399910430,1766857834513,-260.0,0.00019311,2]
[399910431,1766857834523,-1000.0,0.00019356,7]
[399910432,1766857834532,-232.23385348,0.00019356,7]
[399910433,1766857834541,-2860.3536893,0.00019357,2]
[399910434,1766857834551,-823.3,0.000195,2]
[399910435,1766857834560,-239.17676281,0.00019594,2]
[399910436,1766857834570,-524.39458414,0.00019721,2]
[399910437,1766857834580,-496.47127164,0.00019726,2]
[399910438,1766857834590,-2398.4119403,0.00019726,2]
[399910439,1766857834600,-171.62632945,0.00019832,2]
[399910440,1766857834610,-520.0,0.00019859,2]
[399910441,1766857834623,-823.3,0.000199,2]
[399910442,1766857834632,-1041.66666667,0.00019948,2]
[399910443,1766857834642,-157.74131493,0.0002,2]
[399910444,1766857834652,-2000.0,0.0002,7]
[399910445,1766857834661,-1851.02321956,0.00020083,2]
[399910446,1766857834671,-935.0,0.00020163,10]
[399910447,1766857834681,-157.91231204,0.00020164,30]
[399910448,1766857834691,-477.897979,0.00020187,2]
[399910449,1766857834701,-823.3,0.000202,2]
[399910450,1766857834712,-514.84070869,0.00020274,2]
[399910451,1766857834721,-2487.15318209,0.00020274,2]
[399910452,1766857834732,-524.39458414,0.00020311,2]
[399910453,1766857834741,-1315.36073168,0.00020377,2]
[399910454,1766857834751,-157.91231204,0.00020438,30]
[399910455,1766857834761,-1000.0,0.00020452,7]
[399910456,1766857834771,-14487.0,0.00020493,10]
[399910457,1766857834780,-823.3,0.000205,2]
[399910458,1766857834791,-157.91231204,0.00020712,30]
[399910459,1766857834800,-537.0862231,0.00020754,2]
[399910460,1766857834810,-823.3,0.000208,2]
[399910461,1766857834820,-550.97179983,0.00020822,2]
[399910462,1766857834830,-2579.17784983,0.00020822,2]
[399910463,1766857834840,-524.39458414,0.000209,2]
[399910464,1766857834850,-720.0,0.00020914,2]
[399910465,1766857834860,-157.91231204,0.00020986,30]
[399910466,1766857834870,-83343.73552444,0.00021,7]
[399910534,1766857841192,-330.92112532,0.00017593,2]
[399910535,1766857841203,-500.0,0.00017593,2]
[399910536,1766857841214,-500.0,0.00017593,2]
[399910537,1766857841225,-500.0,0.00017593,2]
[399910538,1766857841236,-218.91633273,0.00017593,2]
[399910539,1766857841246,-500.0,0.00017593,2]
[399910540,1766857841257,-500.0,0.00017593,2]
[399910541,1766857841267,-42.52417767,0.00017593,2]
[399910560,1766857845185,-457.47582233,0.00017593,2]
[399910561,1766857845195,-500.0,0.00017593,2]
[399910563,1766857845395,-500.0,0.00017593,2]
[399910564,1766857845407,-61.00316879,0.00017593,2]
[399910566,1766857845819,-438.99683121,0.00017593,2]
[399910567,1766857845831,-500.0,0.00017593,2]
[399910569,1766857845840,-500.0,0.00017593,2]
[399910570,1766857845850,-500.0,0.00017593,2]
[399910571,1766857845859,-500.0,0.00017593,2]
[399910572,1766857845868,-500.0,0.00017593,2]
[399910573,1766857845877,-500.0,0.00017593,2]
[399910574,1766857845887,-500.0,0.00017593,2]
[399910575,1766857845896,-500.0,0.00017593,2]
[399910576,1766857845905,-392.84076566,0.00017593,2]
[399910577,1766857845915,-500.0,0.00017593,2]
[399910578,1766857845924,-500.0,0.00017593,2]
[399910579,1766857845934,-500.0,0.00017593,2]
[399910580,1766857845943,-203.35312099,0.00017593,2]
[399910581,1766857845953,-500.0,0.00017593,2]
[399910582,1766857845963,-300.0,0.00017944,2]
[399910583,1766857845973,-174.560685,0.00019178,2]
[399910585,1766857845983,-174.560685,0.00019178,2]
[399910586,1766857845992,-174.560685,0.00019178,2]
[399910587,1766857846002,-174.560685,0.00019178,2]
[399910588,1766857846011,-174.560685,0.00019178,2]
[399910589,1766857846021,-174.560685,0.00019178,2]
[399910590,1766857846030,-174.560685,0.00019178,2]
[399910591,1766857846039,-169.88531113,0.00019178,2]
[399910599,1766857846411,-300.0,0.00017944,2]
[399910600,1766857846421,-300.0,0.00017944,2]
[399910601,1766857846431,-4.67537387,0.00019178,2]
[399910602,1766857846441,-174.560685,0.00019178,2]
[399910603,1766857846450,-174.560685,0.00019178,2]
[399910604,1766857846461,-174.560685,0.00019178,2]
[399910605,1766857846470,-174.560685,0.00019178,2]
[399910606,1766857846481,-174.560685,0.00019178,2]
[399910607,1766857846491,-174.560685,0.00019178,2]
[399910608,1766857846500,-174.560685,0.00019178,2]
[399910609,1766857846509,-174.560685,0.00019178,2]
[399910610,1766857846519,-174.560685,0.00019178,2]
[399910611,1766857846529,-174.560685,0.00019178,2]
[399910612,1766857846538,-174.560685,0.00019178,2]
[399910613,1766857846548,-174.560686,0.00019178,2]
[399910614,1766857846558,-4255.77640513,0.00021,7]
[399910615,1766857875465,153.86,0.000144,2]
[399910616,1766857878401,457.63175774,0.00013273,2]
[399910617,1766857882336,300.0,0.00013673,2]
[399910618,1766857889583,225.131704,8.62e-05,2]
[399910619,1766857889608,329.278296,8.62e-05,2]
[399910620,1766857889995,1108.83,9.03e-05,2]
[399910621,1766857890442,1315.41586293,9.441e-05,2]
[399910622,1766857890479,347.82413707,9.441e-05,2]
[399910623,1766857890851,2217.65,9.851e-05,2]
[399910624,1766857891258,2772.06,0.00010261,2]
[399910625,1766857891872,3326.48,0.00010672,2]
[399910626,1766857892055,3880.89,0.00011082,2]
[399910627,1766857892449,4435.3,0.00011493,2]
[399910628,1766857892845,4989.72,0.00011903,2]
[399910629,1766857893252,5544.13,0.00012314,2]
[399910630,1766857925940,500.0,0.00013273,2]
[399910631,1766857925999,1000.0,0.00013821,2]
[399910632,1766857934729,500.0,0.00013699,2]
[399910633,1766857934803,1000.0,0.00014247,2]
[399910634,1766857935432,500.0,0.00013273,2]
[399910635,1766857935481,1000.0,0.00013821,2]
[399910636,1766857936736,500.0,0.00013699,2]
[399910637,1766857936803,1000.0,0.00014247,2]
[399910638,1766857966034,172.05,8.544e-05,2]
[399910639,1766857966452,344.1,8.951e-05,2]
[399910640,1766857966900,516.15,9.358e-05,2]
[399910641,1766857967311,688.2,9.765e-05,2]
[399910642,1766857967738,860.26,0.00010172,2]
[399910643,1766857968162,1032.31,0.00010579,2]
[399910644,1766857968582,1204.36,0.00010985,2]
[399910645,1766857969007,1376.41,0.00011392,2]
[399910646,1766857969438,1548.46,0.00011799,2]
[399910647,1766857969998,1720.51,0.00012206,2]
[399910648,1766857987624,500.0,0.00013699,2]
[399910649,1766857987702,1000.0,0.00014247,2]
[399910650,1766857988448,500.0,0.00013273,2]
[399910651,1766857988654,1000.0,0.00013821,2]
[399910652,1766857988697,500.0,0.00013273,2]
[399910653,1766857988738,1500.0,0.00014368,2]
[399910654,1766857988783,1000.0,0.00013821,2]
[399910655,1766857988820,1500.0,0.00014368,2]
[399910656,1766857993706,527.84192683,0.00013699,2]
[399910657,1766857994496,207.26351811,0.000143,2]
[399910658,1766858003883,300.0,0.00013673,2]
[399910659,1766858003932,600.0,0.00014221,2]
[399910660,1766858004392,500.0,0.00013699,2]
[399910661,1766858004442,1000.0,0.00014247,2]
[399910662,1766858042594,150.0,0.00010006,2]
[399910663,1766858043129,150.0,0.00010482,2]
[399910664,1766858043511,154.85,0.00010959,2]
[399910665,1766858043943,206.46,0.00011435,2]
[399910666,1766858044543,258.08,0.00011912,2]
[399910667,1766858044948,309.69,0.00012388,2]
[399910668,1766858045366,361.31,0.00012865,2]
[399910669,1766858045606,500.0,0.00013273,2]
[399910670,1766858045666,1000.0,0.00013821,2]
[399910671,1766858045724,1500.0,0.00014368,2]
[399910672,1766858045783,412.92,0.00013341,2]
[399910673,1766858046204,464.54,0.00013818,2]
[399910674,1766858046617,516.15,0.00014294,2]
[399910675,1766858054722,500.0,0.00013699,2]
[399910676,1766858054766,1000.0,0.00014247,2]
[399910677,1766858055628,500.0,0.00013273,2]
[399910678,1766858055677,1000.0,0.00013821,2]
[399910679,1766858055733,1500.0,0.00014368,2]
[399910680,1766858055991,1000.0,0.00014247,2]
[399910681,1766858056050,500.0,0.00013699,2]
[399910682,1766858104176,500.0,0.00013699,2]
[399910683,1766858107148,228.47688228,0.00013273,2]
[399910684,1766858107183,500.0,0.00013699,2]
[399910685,1766858107226,637.77842998,0.00014247,2]
[399910686,1766858111312,500.0,0.00013273,2]
[399910687,1766858111375,1000.0,0.00013821,2]
[399910688,1766858111427,1500.0,0.00014368,2]
[399910689,1766858116588,150.0,9.566e-05,2]
[399910690,1766858116959,150.0,0.00010021,2]
[399910691,1766858117354,150.0,0.00010477,2]
[399910692,1766858117770,150.0,0.00010932,2]
[399910693,1766858118191,150.0,0.00011388,2]
[399910694,1766858118599,150.0,0.00011843,2]
[399910695,1766858119037,150.0,0.00012299,2]
[399910698,1766858125989,300.0,0.00013673,2]
[399910699,1766858126036,500.0,0.00013699,2]
[399910700,1766858126076,600.0,0.00014221,2]
[399910701,1766858126141,1000.0,0.00014247,2]
[399910702,1766858176872,500.0,0.00013699,2]
[399910703,1766858176983,1000.0,0.00013821,2]
[399910704,1766858177018,1000.0,0.00014247,2]
[399910705,1766858177056,500.0,0.00013273,2]
[399910706,1766858177094,1000.0,0.00014247,2]
[399910707,1766858177130,1500.0,0.00014368,2]
[399910708,1766858177600,500.0,0.00013699,2]
[399910709,1766858230638,500.0,0.00013273,2]
[399910710,1766858230685,1000.0,0.00013821,2]
[399910711,1766858230750,1500.0,0.00014368,2]
[399910712,1766858244054,1000.0,0.00014247,2]
[399910713,1766858244111,500.0,0.00013699,2]
[399910714,1766858244354,300.0,0.00013673,2]
[399910715,1766858244506,600.0,0.00014221,2]
[399910716,1766858284904,258.23753703,0.00013699,2]
[399910717,1766858295828,500.0,0.00013273,2]
[399910718,1766858295892,500.0,0.00013699,2]
[399910719,1766858295940,1000.0,0.00013821,2]
[399910720,1766858295975,275.85673877,0.00014247,2]
[399910721,1766858296010,1500.0,0.00014368,2]
[399910722,1766858296056,500.0,0.00013699,2]
[399910723,1766858296106,1000.0,0.00014247,2]
[399910726,1766858346974,500.0,0.00013699,2]
[399910727,1766858347076,1000.0,0.00014247,2]
[399910728,1766858347318,500.0,0.00013273,2]
[399910729,1766858347370,711.16874828,0.00013821,2]
[399910730,1766858350282,500.0,0.00013273,2]
[399910731,1766858350329,1000.0,0.00013821,2]
[399910732,1766858350387,1500.0,0.00014368,2]
[399910733,1766858363502,500.0,0.00013699,2]
[399910734,1766858363547,1000.0,0.00014247,2]
[399910735,1766858468678,500.0,0.00013699,2]
[399910736,1766858468731,1000.0,0.00014247,2]
[399910737,1766858473127,300.0,0.00013673,2]
[399910738,1766858473178,600.0,0.00014221,2]
[399910739,1766858483045,1000.0,0.00013821,2]
[399910740,1766858483097,500.0,0.00013273,2]
[399910741,1766858483150,1500.0,0.00014368,2]
[399910742,1766858483577,500.0,0.00013699,2]
[399910743,1766858483632,1000.0,0.00014247,2]
[399910744,1766858487712,1000.0,0.00013821,2]
[399910745,1766858487750,500.0,0.00013273,2]
[399910746,1766858487790,1500.0,0.00014368,2]
[399910747,1766858501020,1000.0,0.00014247,2]
[399910748,1766858501073,500.0,0.00013699,2]
[399910749,1766858586601,500.0,0.00013273,2]
[399910750,1766858586888,1000.0,0.00013821,2]
[399910751,1766858586933,1500.0,0.00014368,2]
[399910752,1766858589797,300.0,0.00013673,2]
[399910753,1766858589891,600.0,0.00014221,2]
[399910754,1766858599064,500.0,0.00013699,2]
[399910755,1766858599119,1000.0,0.00014247,2]
[399910756,1766858599375,1000.0,0.00013821,2]
[399910757,1766858599433,500.0,0.00013273,2]
[399910758,1766858599481,1500.0,0.00014368,2]
[399910759,1766858603238,500.0,0.00013273,2]
[399910760,1766858603290,1000.0,0.00013821,2]
[399910761,1766858603341,1500.0,0.00014368,2]
[399910762,1766858615772,500.0,0.00013699,2]
[399910763,1766858615823,1000.0,0.00014247,2]
[399910764,1766858706142,1000.0,0.00013821,2]
[399910765,1766858706178,1500.0,0.00014368,2]
[399910766,1766858706217,500.0,0.00013273,2]
[399910767,1766858706761,500.0,0.00013699,2]
[399910768,1766858706810,1000.0,0.00014247,2]
[399910769,1766858710070,300.0,0.00013673,2]
[399910770,1766858710121,600.0,0.00014221,2]
[399910771,1766858719048,500.0,0.00013699,2]
[399910772,1766858719102,1000.0,0.00014247,2]
[399910773,1766858719542,500.0,0.00013273,2]
[399910774,1766858719598,1000.0,0.00013821,2]
[399910775,1766858719649,500.0,0.00014368,2]
[399910776,1766858723998,500.0,0.00013273,2]
[399910777,1766858735313,500.0,0.00013699,2]
[399910778,1766858735361,1000.0,0.00014247,2]
[399910779,1766858831969,300.0,0.00013673,2]
[399910780,1766858832012,600.0,0.00014221,2]
[399910781,1766858839706,500.0,0.00013699,2]
[399910782,1766858839765,1000.0,0.00014247,2]
[399910783,1766858854865,500.0,0.00013699,2]
[399910784,1766858855048,1000.0,0.00014247,2]
[399910785,1766858950715,300.0,0.00013673,2]
[399910786,1766858950749,600.0,0.00014221,2]
[399910787,1766858958925,500.0,0.00013699,2]
[399910788,1766858958978,1000.0,0.00014247,2]
[399910789,1766858959119,-207.94461443,0.00014622,2]
[399910790,1766858959141,-286.94022939,0.00014716,2]
[399910791,1766858959169,-213.05977061,0.00014716,2]
[399910792,1766858959191,-500.0,0.00014716,2]
[399910793,1766858959211,-500.0,0.00014716,2]
[399910794,1766858959232,-394.73471236,0.00014716,2]
[399910795,1766858959252,-300.0,0.00014767,2]
[399910796,1766858959272,-900.0,0.00014768,2]
[399910797,1766858959293,-500.0,0.0001479,2]
[399910798,1766858959313,-500.0,0.0001479,2]
[399910799,1766858959334,-256.57902813,0.0001479,2]
[399910800,1766858959354,-500.0,0.0001479,2]
[399910801,1766858959374,-500.0,0.0001479,2]
[399910802,1766858959394,-403.19913112,0.0001479,2]
[399910803,1766858973036,500.0,0.00013699,2]
[399910804,1766858973120,1000.0,0.00014247,2]
[399910810,1766859032692,-612.05,0.000144,2]
[399910811,1766859032702,-1388.26741467,0.00014695,2]
[399910812,1766859032712,-612.05,0.000147,2]
[399910813,1766859032721,-500.0,0.00014789,2]
[399910814,1766859032731,-500.0,0.00014789,2]
[399910815,1766859032741,-500.0,0.00014789,2]
[399910816,1766859032751,-500.0,0.00014789,2]
[399910817,1766859032760,-231.47939819,0.00014789,2]
[399910818,1766859032771,-500.0,0.00014789,2]
[399910819,1766859032781,-596.83101723,0.00014789,2]
[399910820,1766859032790,-500.0,0.00014789,2]
[399910821,1766859032800,-500.0,0.00014789,2]
[399910822,1766859032809,-500.0,0.00014789,2]
[399910823,1766859032818,-500.0,0.00014789,2]
[399910824,1766859032828,-500.0,0.00014789,2]
[399910825,1766859032837,-50000.0,0.0001479,2]
[399910826,1766859032847,-289.7278017,0.00014792,2]
[399910827,1766859032856,-1500.0,0.00014795,2]
[399910828,1766859032866,-1500.0,0.00014795,2]
[399910829,1766859032875,-1500.0,0.00014795,2]
[399910830,1766859032884,-1500.0,0.00014795,2]
[399910831,1766859032894,-2000.0,0.00014916,2]
[399910832,1766859032904,-2000.0,0.00014916,2]
[399910833,1766859032913,-612.05,0.00015,2]
[399910834,1766859032922,-175.016547,0.00015068,2]
[399910835,1766859032932,-800.0,0.00015068,2]
[399910836,1766859032941,-1200.0,0.00015316,2]
[399910837,1766859032951,-2000.0,0.00015342,2]
[399910838,1766859032960,-1537.62568073,0.00015342,2]
[399910839,1766859032970,-2000.0,0.00015342,2]
[399910840,1766859032980,-2000.0,0.00015342,2]
[399910841,1766859032990,-612.05,0.000154,2]
[399910842,1766859033009,-151.0,0.00015406,2]
[399910843,1766859033022,-151.0,0.00015406,2]
[399910844,1766859033033,-2500.0,0.00015464,2]
[399910845,1766859033043,-199.75710337,0.00015464,2]
[399910846,1766859033053,-612.05,0.000157,2]
[399910847,1766859033062,-300.0,0.00015773,2]
[399910848,1766859033074,-300.0,0.00015773,2]
[399910849,1766859033084,-300.0,0.00015773,2]
[399910850,1766859033094,-300.0,0.00015773,2]
[399910851,1766859033104,-300.0,0.00015773,2]
[399910852,1766859033114,-300.0,0.00015773,2]
[399910853,1766859033124,-300.0,0.00015773,2]
[399910854,1766859033134,-300.0,0.00015773,2]
[399910855,1766859033144,-300.0,0.00015773,2]
[399910856,1766859033154,-300.0,0.00015773,2]
[399910857,1766859033164,-300.0,0.00015773,2]
[399910858,1766859033175,-300.0,0.00015773,2]
[399910859,1766859033184,-300.0,0.00015773,2]
[399910860,1766859033194,-300.0,0.00015773,2]
[399910861,1766859033204,-300.0,0.00015773,2]
[399910862,1766859033213,-1500.0,0.00015864,2]
[399910863,1766859033223,-1578.60426103,0.0001589,2]
[399910864,1766859033233,-1000.0,0.0001589,2]
[399910865,1766859033243,-1000.0,0.0001589,2]
[399910866,1766859033254,-5486.02219086,0.000159,2]
[399910867,1766859033264,-612.05,0.00016,2]
[399910868,1766859033274,-3000.0,0.00016012,2]
[399910869,1766859033284,-151.0,0.00016099,2]
[399910870,1766859033294,-151.0,0.00016099,2]
[399910871,1766859033305,-1600.0,0.00016164,2]
[399910872,1766859033315,-600.0,0.00016207,2]
[399910873,1766859033325,-400.0,0.00016244,2]
[399910874,1766859033335,-5486.02219085,0.00016279,2]
[399910875,1766859033344,-612.05,0.000163,2]
[399910876,1766859033354,-211.13,0.00016428,3]
[399910877,1766859033364,-633.44,0.00016428,3]
[399910878,1766859033374,-151.0,0.00016438,2]
[399910879,1766859033384,-151.0,0.00016438,2]
[399910880,1766859033393,-151.0,0.00016438,2]
[399910881,1766859033403,-151.0,0.00016438,2]
[399910882,1766859033413,-154.62337665,0.00016438,2]
[399910883,1766859033422,-151.0,0.00016438,2]
[399910884,1766859033431,-151.0,0.00016438,2]
[399910885,1766859033441,-151.0,0.00016438,2]
[399910886,1766859033451,-151.0,0.00016438,2]
[399910887,1766859033461,-151.0,0.00016438,2]
[399910888,1766859033470,-151.0,0.00016438,2]
[399910889,1766859033480,-151.0,0.00016438,2]
[399910890,1766859033489,-151.0,0.00016438,2]
[399910891,1766859033503,-157.458107,0.00016438,2]
[399910892,1766859033513,-157.458107,0.00016438,2]
[399910893,1766859033523,-157.458107,0.00016438,2]
[399910894,1766859033533,-157.458107,0.00016438,2]
[399910895,1766859033543,-157.458107,0.00016438,2]
[399910896,1766859033553,-157.458107,0.00016438,2]
[399910897,1766859033563,-157.458107,0.00016438,2]
[399910898,1766859033572,-157.458107,0.00016438,2]
[399910899,1766859033582,-157.458107,0.00016438,2]
[399910900,1766859033591,-157.458107,0.00016438,2]
[399910901,1766859033601,-157.458107,0.00016438,2]
[399910902,1766859033612,-157.458107,0.00016438,2]
[399910903,1766859033622,-157.458107,0.00016438,2]
[399910904,1766859033632,-157.458107,0.00016438,2]
[399910905,1766859033642,-157.458107,0.00016438,2]
[399910906,1766859033653,-157.458107,0.00016438,2]
[399910907,1766859033663,-163.85613355,0.00016438,2]
[399910908,1766859033673,-191.370153,0.00016438,2]
[399910909,1766859033683,-191.370153,0.00016438,2]
[399910910,1766859033693,-191.370153,0.00016438,2]
[399910911,1766859033703,-191.370153,0.00016438,2]
[399910912,1766859033713,-191.370153,0.00016438,2]
[399910913,1766859033723,-191.370153,0.00016438,2]
[399910914,1766859033732,-191.370153,0.00016438,2]
[399910915,1766859033742,-191.370153,0.00016438,2]
[399910916,1766859033752,-191.370153,0.00016438,2]
[399910917,1766859033762,-191.370153,0.00016438,2]
[399910918,1766859033771,-191.370153,0.00016438,2]
[399910919,1766859033781,-191.370153,0.00016438,2]
[399910920,1766859033791,-191.370153,0.00016438,2]
[399910921,1766859033801,-191.370153,0.00016438,2]
[399910922,1766859033810,-191.370153,0.00016438,2]
[399910923,1766859033820,-191.370153,0.00016438,2]
[399910924,1766859033830,-259.55028667,0.00016438,2]
[399910925,1766859033840,-200.13782281,0.00016473,2]
[399910926,1766859033849,-160.0,0.00016527,2]
[399910927,1766859033859,-151.0,0.0001656,2]
[399910928,1766859033869,-215.830514,0.0001656,2]
[399910929,1766859033879,-2908.05046056,0.0001656,2]
[399910930,1766859033888,-226.80628023,0.000166,2]
[399910931,1766859033899,-226.80628022,0.000166,2]
[399910932,1766859033909,-612.05,0.000166,2]
[399910933,1766859033919,-245.37464503,0.00016622,2]
[399910934,1766859033929,-5486.02219085,0.00016659,2]
[399910935,1766859033939,-151.0,0.0001676,2]
[399910936,1766859033948,-180.624704,0.0001676,2]
[399910937,1766859033958,-1676.430167,0.00016983,2]
[399910938,1766859033968,-191.370153,0.00016983,2]
[399910939,1766859033978,-191.370153,0.00016983,2]
[399910940,1766859033987,-191.370153,0.00016983,2]
[399910941,1766859034001,-191.370153,0.00016983,2]
[399910942,1766859034011,-157.458107,0.0001699,2]
[399910943,1766859034021,-157.458107,0.0001699,2]
[399910944,1766859034030,-157.458107,0.0001699,2]
[399910945,1766859034040,-157.458102,0.0001699,2]
[399910946,1766859034050,-612.05,0.00017,2]
[399910947,1766859034060,-5486.02219085,0.00017038,2]
[399910948,1766859034070,-260.0,0.00017075,2]
[399910949,1766859034322,-418.4,0.0001713,2]
[399910950,1766859034332,-2401.13337606,0.0001726,2]
[399910951,1766859034342,-612.05,0.000173,2]
[399910952,1766859034351,-1388.26741467,0.00017327,2]
[399910953,1766859034360,-316.0,0.00017335,2]
[399910954,1766859034370,-5486.02219085,0.00017417,2]
[399910955,1766859034379,-374.0,0.00017512,2]
[399910956,1766859034388,-500.0,0.00017584,2]
[399910957,1766859034398,-461.67526834,0.00017584,2]
[399910958,1766859034408,-151.0,0.00017584,2]
[399910959,1766859034417,-500.0,0.00017584,2]
[399910960,1766859034430,-151.0,0.00017584,2]
[399910961,1766859034440,-500.0,0.00017584,2]
[399910962,1766859034450,-151.0,0.00017584,2]
[399910963,1766859034459,-500.0,0.00017584,2]
[399910964,1766859034469,-151.0,0.00017584,2]
[399910965,1766859034478,-500.0,0.00017584,2]
[399910966,1766859034488,-335.77230478,0.00017584,2]
[399910967,1766859034498,-2230.315306,0.00017584,2]
[399910968,1766859034508,-151.0,0.00017584,2]
[399910969,1766859034517,-500.0,0.00017584,2]
[399910970,1766859034527,-151.0,0.00017584,2]
[399910971,1766859034536,-500.0,0.00017584,2]
[399910972,1766859034545,-151.0,0.00017584,2]
[399910973,1766859034554,-500.0,0.00017584,2]
[399910974,1766859034563,-151.0,0.00017584,2]
[399910975,1766859034573,-151.0,0.00017584,2]
[399910976,1766859034583,-500.0,0.00017584,2]
[399910977,1766859034593,-1000.0,0.00017584,2]
[399910978,1766859034601,-151.0,0.00017584,2]
[399910979,1766859034611,-500.0,0.00017584,2]
[399910980,1766859034621,-1000.0,0.00017584,2]
[399910981,1766859034630,-151.0,0.00017584,2]
[399910982,1766859034639,-500.0,0.00017584,2]
[399910983,1766859034649,-1000.0,0.00017584,2]
[399910984,1766859034658,-151.0,0.00017584,2]
[399910985,1766859034667,-500.0,0.00017584,2]
[399910986,1766859034677,-1000.0,0.00017584,2]
[399910987,1766859034686,-151.0,0.00017584,2]
[399910988,1766859034696,-1000.0,0.00017584,2]
[399910989,1766859034706,-500.0,0.00017584,2]
[399910990,1766859034715,-195.08436649,0.00017584,2]
[399910991,1766859034724,-1000.0,0.00017584,2]
[399910992,1766859034734,-500.0,0.00017584,2]
[399910993,1766859034743,-743.04112865,0.00017584,2]
[399910994,1766859034752,-500.0,0.00017584,2]
[399910995,1766859034761,-500.0,0.00017584,2]
[399910996,1766859034771,-500.0,0.00017584,2]
[399910997,1766859034780,-250.0,0.00017584,2]
[399910998,1766859034789,-260.5753103,0.00017584,2]
[399910999,1766859034799,-612.05,0.000176,2]
[399911000,1766859034808,-360.0,0.00017623,2]
[399911001,1766859034818,-418.4,0.00017664,2]
[399911002,1766859034827,-333.5943734,0.00017669,2]
[399911003,1766859034837,-422.26,0.00017798,3]
[399911004,1766859034847,-720.0,0.00017828,2]
[399911005,1766859034856,-612.05,0.000179,2]
[399911006,1766859034866,-250.0,0.00017958,2]
[399911007,1766859034876,-478.75725327,0.00018132,2]
[399911008,1766859034886,-2312.83697232,0.00018132,2]
[399911009,1766859034896,-460.0,0.00018171,2]
[399911010,1766859034905,-418.4,0.00018197,2]
[399911011,1766859034915,-612.05,0.000182,2]
[399911012,1766859034925,-416.0,0.00018533,2]
[399911013,1766859034935,-612.05,0.000186,2]
[399911014,1766859034945,-282.80467563,0.00018622,2]
[399911015,1766859034955,-25066.9530999,0.00018639,2]
[399911016,1766859034966,-770.0545954,0.00018639,2]
[399911017,1766859034976,-153.3550433,0.00018639,2]
[399911018,1766859034985,-22907.6209495,0.00018639,2]
[399911019,1766859034995,-500.0,0.00018641,2]
[399911020,1766859035005,-496.47127164,0.0001868,2]
[399911021,1766859035015,-2398.4119403,0.0001868,2]
[399911022,1766859035025,-151.0,0.000187,2]
[399911023,1766859035035,-560.0,0.00018719,2]
[399911024,1766859035045,-418.4,0.00018731,2]
[399911025,1766859035055,-213.24860512,0.00018754,2]
[399911026,1766859035066,-852.99442049,0.00018754,2]